Cogmind - Beta 11.1 @@@ ROGUE MODE // 2022.12.16 @ 11:21:47 Player: ChromeKnight Result: Destroyed by D-53 Grenadier with Mini Grenade Launcher Performance ------------- Evolutions (0) 0 Regions Visited (2) 400 Robots Destroyed (17) 85 Value Destroyed (179) 179 Prototype IDs (0) 0 Alien Tech Used (0) 0 Bonus (0) 0 TOTAL SCORE: 664 Bonus ------- None Cogmind --------- Core Integrity 0/250 Matter 300/300 Energy 100/100 System Corruption 1% Temperature Cool (0) Movement Walking (120) Location -10/Mines Parts ------- > --- POWER (1) -------- (None) > --- PROPULSION (2) --- Aluminum Leg Aluminum Leg > --- UTILITY (2) ------ Medium Storage Unit Visual Processing Unit > --- WEAPON (2) ------- (None) > --- INVENTORY (10) --- Light Ion Engine Disposable Heat Sink Targeting Computer Weapon Shielding Light Armor Plating Light Armor Plating Light Armor Plating Shield Generator Beam Cannon Peak State ------------ > --- POWER ------------ Light Ion Engine > --- PROPULSION ------- Aluminum Leg Aluminum Leg > --- UTILITY ---------- Medium Storage Unit Visual Processing Unit > --- WEAPON ----------- Medium Laser Hammer > --- INVENTORY -------- Light Ion Engine Aluminum Leg Disposable Heat Sink Targeting Computer Weapon Shielding Light Armor Plating Light Armor Plating Light Armor Plating Shield Generator Beam Cannon [Rating: 9] Favorites ----------- Power Light Ion Engine Engine Light Ion Engine Propulsion Aluminum Leg Leg Aluminum Leg Utility Medium Storage Unit Storage Medium Storage Unit Processor Visual Processing Unit Weapon Medium Laser Energy Gun Medium Laser Impact Weapon Hammer Build | -11 -10 -10 ------- Run | Scr Mat Min Slots Evolved . | . . . Power . | . . . Propulsion . | . . . Utility . | . . . Weapon . | . . . Parts Attached 15 | 5 8 2 Power 4 | 1 2 1 Engine 4 | 1 2 1 Core . | . . . Reactor . | . . . Propulsion 5 | 2 2 1 Treads . | . . . Leg 5 | 2 2 1 Wheel . | . . . Hover . | . . . Flight . | . . . Utility 4 | 1 3 . Device . | . . . Storage 3 | 1 2 . Processor 1 | . 1 . Hackware . | . . . Protection . | . . . Artifact . | . . . Weapon 2 | 1 1 . Energy Gun 1 | 1 . . Energy Cannon . | . . . Ballistic Gun . | . . . Ballistic Cannon . | . . . Launcher . | . . . Special Weapon . | . . . Impact Weapon 1 | . 1 . Slashing Weapon . | . . . Piercing Weapon . | . . . Special Melee Weapon . | . . . Unidentified Prototypes . | . . . Parts Lost 5 | . 1 4 Power 2 | . 1 1 Propulsion 1 | . . 1 Utility . | . . . Weapon 2 | . . 2 Highest Loss Streak 4 | . 1 4 To Critical Strikes . | . . . Average Slot Usage (%) 82 | . 77 98 Engine 13 | . 13 13 Leg 27 | . 27 28 Storage 14 | . 14 14 Processor 3 | . . 14 Energy Gun 13 | . 14 13 Impact Weapon 8 | . 6 13 Naked Turns . | . . . Heaviest Build 18 | 10 18 17 Greatest Support 20 | 20 20 20 Greatest Overweight (x) 1 | . . 1 Average Overweight (x) . | . . . Largest Inventory Capacity 10 | 8 10 10 Average Capacity 9 | 7 9 10 Most Carried 10 | 1 10 10 Average Carried 7 | . 7 9 Final Capacity 10 | 8 10 10 Final Carried 10 | 1 10 9 Class Distribution -------------------- 100% | Mutant Dominant Class ---------------- Mutant | -10/Materials Mutant | -10/Mines Resources | -11 -10 -10 ----------- Run | Scr Mat Min Matter Collected 340 | 249 74 17 Remotely . | . . . Salvage Created 452 | 41 327 84 Parts 33 | 5 23 5 Haulers Intercepted 1 | . 1 . Recyclers Shooed 1 | . 1 . Parts Field Recycled . | . . . Retrieved Matter . | . . . Parts Self-Destructed . | . . . Prevented . | . . . Kills | -11 -10 -10 ------- Run | Scr Mat Min Combat Hostiles Destroyed 13 | . 7 6 Melee 4 | . 3 1 Guns 7 | . 4 3 Cannons 1 | . . 1 Classes Destroyed 8 | 1 6 1 Worker 1 | . 1 . Tunneler 2 | 2 . . Hauler 1 | . 1 . Recycler 1 | . 1 . Watcher 2 | . 2 . Swarmer 9 | . 6 3 Grunt 1 | . 1 . Assembled 3 | . . 3 Best Kill Streak 5 | 2 5 3 Combat Bots Only 3 | . 3 3 Max Kills in Single Turn 1 | 1 1 1 Gunslinging . | . . . Exploded . | . . . Melee 1 | . 1 1 Uniques/NPCs Destroyed . | . . . Combat | -11 -10 -10 -------- Run | Scr Mat Min Damage Taken 860 | . 291 569 Core 273 | . 91 182 Absorbed by Shields . | . . . Regen/Repaired (Parts) 67 | . 67 . Core Remaining (%) 100 | 100 . . Volleys Fired 43 | 4 30 9 Largest 1 | 1 1 1 Hottest 50 | 50 50 50 Shots Fired 43 | 4 30 9 Gun 43 | 4 30 9 Cannon . | . . . Launcher . | . . . Special . | . . . Kinetic . | . . . Thermal 43 | 4 30 9 Explosive . | . . . Electromagnetic . | . . . Robot Hit Streak 9 | 3 9 3 Robot Miss Streak 4 | 1 4 2 Penetration Max . | . . . Secondary Targets . | . . . Shots Hit Robots 38 | 3 25 10 Core Hits 22 | 2 15 5 Critical Kills . | . . . Critical Parts Destroyed 1 | . 1 . Critical Strikes 3 | 1 2 . Burn 2 | 1 1 . Smash 1 | . 1 . Melee Attacks 15 | . 8 7 Impact 15 | . 8 7 Slashing . | . . . Piercing . | . . . Sneak Attacks 1 | . 1 . Combat Hostiles . | . . . Follow-up Attacks . | . . . Damage Inflicted 641 | 38 390 213 Guns 337 | 38 238 61 Cannons . | . . . Explosions . | . . . Melee 304 | . 152 152 Ramming . | . . . Kinetic . | . . . Thermal 337 | 38 238 61 Explosive . | . . . Electromagnetic . | . . . Impact 304 | . 152 152 Slashing . | . . . Piercing . | . . . Highest Corruption 1 | . 1 1 Average Corruption 1 | . 1 1 Corruption Purged . | . . . Corruption Blocked . | . . . Effects 3 | . . 3 Message Errors 2 | . . 2 Energy Discharges 1 | . . 1 Overload Shots . | . . . Overflow Damage 56 | . 54 2 Projectiles . | . . . Explosions . | . . . Melee 56 | . 54 2 Knockbacks 3 | . 1 2 Impact 2 | . 1 1 Kinetic . | . . . Secondary 1 | . . 1 Self-Inflicted Damage . | . . . Shots . | . . . Rammed . | . . . Targets Rammed . | . . . Kicked . | . . . Crushed . | . . . Highest Temperature 100 | 40 100 60 Average Temperature 24 | 20 25 23 Received Heat Transfer 56 | . 36 20 Siege Activations . | . . . Robots Corrupted . | . . . Combat Hostiles . | . . . Parts Fried . | . . . Impact Corruptions 3 | . 2 1 Robots Melted . | . . . Combat Hostiles . | . . . Parts Melted 4 | 1 1 2 Heat Transferred 1147 | 185 777 185 Parts Sabotaged . | . . . Parts Stolen . | . . . Parts Stripped . | . . . Power Chain Reactions . | . . . Missiles Intercepted . | . . . Alert | -11 -10 -10 ------- Run | Scr Mat Min Peak Influence 125 | 10 125 87 Initial 6 | . 6 2 Average 37 | 1 42 30 Maximum Alert Level . | . . . Low Security (%) 100 | 100 100 100 Level 1 . | . . . Level 2 . | . . . Level 3 . | . . . Level 4 . | . . . Level 5 . | . . . High Security . | . . . Max Security . | . . . Squads Dispatched 2 | . 2 . Investigation . | . . . Extermination . | . . . Reinforcement 2 | . 2 . Assault . | . . . Garrison . | . . . Intercept . | . . . Searches Triggered . | . . . Construction Impeded . | . . . Haulers Reinforced . | . . . Active Scanning Responses . | . . . Cargo Convoy Interrupts . | . . . Stealth | -11 -10 -10 --------- Run | Scr Mat Min Distress Signals . | . . . Communications Jammed . | . . . Distress Signals . | . . . Times Spotted 31 | . 14 17 Peak Tracking Total 8 | . 3 8 Tactical Retreats 2 | . 1 1 Traps | -11 -10 -10 ------- Run | Scr Mat Min Traps Triggered 1 | . 1 . Indirectly . | . . . Trap Hack Attempts . | . . . Triggered . | . . . Disarmed . | . . . Reprogrammed . | . . . Reused . | . . . Traps Extracted . | . . . Installed . | . . . Triggered . | . . . Machines | -11 -10 -10 ---------- Run | Scr Mat Min Machines Disabled . | . . . Max in Single Turn . | . . . Machines Sabotaged . | . . . Garrisons Compromised . | . . . Overloaded Fab Kills . | . . . Hacking | -11 -10 -10 --------- Run | Scr Mat Min Machines Accessed 2 | . 2 . Terminals 1 | . 1 . Fabricators . | . . . Repair Stations 1 | . 1 . Recycling Units . | . . . Scanalyzers . | . . . Garrison Access . | . . . Total Hacks 6 | . 6 . Successful 4 | . 4 . Failed 2 | . 2 . Catastrophic . | . . . Database Lockouts . | . . . Manual 2 | . 2 . Terminals 2 | . 2 . Fabricators . | . . . Repair Stations 4 | . 4 . Recycling Units . | . . . Scanalyzers . | . . . Garrison Access . | . . . Terminal Hacks . | . . . Fabricator Hacks . | . . . Repair Station Hacks 4 | . 4 . Scan Component 2 | . 2 . Repair 2 | . 2 . Recycling Unit Hacks . | . . . Scanalyzer . | . . . Garrison Access Hacks . | . . . Unauthorized Hacks . | . . . Terminals . | . . . Fabricators . | . . . Repair Stations . | . . . Recycling Units . | . . . Scanalyzers . | . . . Garrison Access . | . . . Data Cores Recovered . | . . . Used . | . . . Hacking Detections 1 | . 1 . Full Trace Events . | . . . Feedback Events . | . . . Feedback Blocked . | . . . Robot Schematics Acquired . | . . . Robots Built . | . . . Authchips . | . . . Time . | . . . Total Robot Build Rating . | . . . Part Schematics Acquired . | . . . Parts Built . | . . . Authchips . | . . . Time . | . . . Total Part Build Rating . | . . . Parts Repaired 2 | . 2 . Time 52 | . 52 . Parts Recycled . | . . . Recycled Matter . | . . . Retrieved Matter . | . . . Retrieved Components . | . . . Parts Scanalyzed . | . . . Part Schematics Acquired . | . . . Parts Damaged . | . . . Bothacking | -11 -10 -10 ------------ Run | Scr Mat Min Used RIF Installer . | . . . Robots Hacked . | . . . Non-combat . | . . . Combat . | . . . Robot Hacks Applied . | . . . Relay Couplers Released . | . . . Fabnet Peak Effective % . | . . . Robots Rewired . | . . . Allies Hacked . | . . . Hacks Repelled . | . . . Allies | -11 -10 -10 -------- Run | Scr Mat Min Total Allies . | . . . Largest Group . | . . . Highest-Rated Group . | . . . Highest-Rated Ally . | . . . Total Orders . | . . . Ally Attacks . | . . . Total Damage . | . . . Kills . | . . . Allies Corrupted . | . . . Allies Melted . | . . . Intel | -11 -10 -10 ------- Run | Scr Mat Min Robot Analysis Total . | . . . Derelict Logs Recovered . | . . . Drone Launches . | . . . Drone Recoveries . | . . . Exploration | -11 -10 -10 ------------- Run | Scr Mat Min Turns Passed 1260 | 63 901 296 Spaces Moved 796 | 45 541 210 Core 9 | 9 . . Treads . | . . . Legs 787 | 36 541 210 Wheels . | . . . Hover . | . . . Flight . | . . . Fastest Speed 50 | 50 120 120 Average Speed 119 | 106 120 120 Slowest Speed 190 | 120 120 190 Overloaded Moves . | . . . Propulsion Burnouts . | . . . Robots Hopped . | . . . Cave-ins Triggered . | . . . Exploration Rate (%) 45 | 4 74 58 Regions Visited 2 Branch Regions 1 Pre-discovered Areas . | . . . Known Exits Taken . | . . . Unknown Exits Taken 2 | 1 1 . Scrap Searched 1 | . . 1 Spaces Dug . | . . . Terrain Destroyed . | . . . Melee . | . . . Projectile . | . . . AOE . | . . . Terrain Rammed . | . . . Walls Destroyed . | . . . Machines Disabled . | . . . Actions | -11 -10 -10 --------- Run | Scr Mat Min Total 1035 | 54 749 232 Wait 147 | . 144 3 Move 794 | 44 540 210 Hop . | . . . Pick Up 14 | 1 13 . Fast Attach 11 | 5 6 . Attach 2 | . 1 1 Detach . | . . . Swap 2 | . 1 1 Drop 7 | . 6 1 Fire 43 | 4 30 9 Melee 15 | . 8 7 Ram . | . . . Kick . | . . . Crush . | . . . Escape Stasis . | . . . Rewire . | . . . Trap . | . . . Miscellaneous . | . . . Route ------- -11/Scrapyard -10/Materials (discovered 2 exits: [*Mat] / [*Min]) -10/Mines History --------- Turn | Location | Event 3 | -11/Scrapyard | Discovered new exit (range 15) 64 | -11/Scrapyard | Entered Materials 301 | -10/Materials | Build established: Mutant 389 | -10/Materials | Discovered new exit (range 15) 784 | -10/Materials | Repaired Aluminum Leg 811 | -10/Materials | Repaired Aluminum Leg 903 | -10/Materials | Discovered new exit (range 11) 965 | -10/Materials | Entered Mines 1195 | -10/Mines | Assembled infested the area 1208 | -10/Mines | Core integrity fell below 50% 1258 | -10/Mines | Core integrity fell below 20% 1261 | -10/Mines | Destroyed by D-53 Grenadier with Mini Grenade Launcher Last Messages --------------- 01212_ as-95482 system corrupted by crushing effect. 01212_ as-95482 knocked back. 01212_ as-88997 destroyed. 01213_ as-95482 system terminally corrupted. 01218_ as-95419 destroyed. 01225_ C-30 ARC bursts open, deploying its payload. 01225_ D-53 Grenadier unfolds itself. 01225_ as-80596 destroyed. 01227_ Seismic Survey Station disabled. 01228_ as-61328 destroyed. 01229_ as-08190 destroyed. 01231_ as-16542 destroyed. 01236_ U-05 Engineer lays Concrete. 01245_ Lgt. Ion Engine destroyed. 01245_ Aluminum Leg destroyed. 01255_ as-76022 destroyed. 01255_ as-70836 destroyed. 01255_ Hammer destroyed. 01257_ as-13192 destroyed. 01259_ Med. Laser destroyed. Map ----- +----------------------------------------------------+ | ?????????????????????????????????? | | ?????????????????????????????????? | | ?????????????????????????????????? | | ?????????????????????????????????? | | ?????????????????????????????????? | | ?????????????????????????????????? | | ?????????????????????????????????? | | ?????????????????????????????????? | | #????????????????????????????????? | | #???????????????????????????????? | | ?????????????????????????????????? | | ?????????????????????????????????? | | ?????????????????????????????????? | | ?????????????????????????????????? | | ?????????????????????????????????? | | ?????????????????????????????????? | | ?????????????????????????????????? | | ???????????????????????????######? | | ???????????????????????????# # #? | | ?????????????????????????### #? | | ?????????????????????????# ## | | ???????????????????????### # | | ???????????????????????# # | | ??????????????????????## # | | ??????????????????????# ## | | ??????????????????????# @ #? | | #???????????????#######d ##? | | ##??????????????# <##?? | | ##?????????????# ###??? | | ##????????????# ### ##????? | | #????????????# #?# #?????? | | #????????????# #?##### #?????? | | ?????????????# #?????# ##?????? | | #?????????????## #?????# #??????? | | #??????????????# #####? ??????? | | #??????????????# ## ??????? | | ##?????????????# ?????? | | ##????????????# # % ?????? | | #????????????# % ?????? | | #####????????# % ##????? | | #?????????# ##?????? | | #??######## ## ???????? | | #####*#??# """ "" ? #???????? | | ????#[#### """ "" #?????????? | | ????#=%*%=%""" "" #?????????? | | ????###### "% ##?????????? | | ?????????# " #??????????? | | ?????????# #??????????? | | ?????????# #??????????? | | ?????????##############??????????? | +----------------------------------------------------+ Best States ------------- Heat Dissipation 25 Energy Generation 10 Energy Capacity 225 Matter Stores 300 Matter Capacity 300 Sight Range 18 Terrain Scan Density 10 Evasion (%) 55 Item Schematics ----------------- None Robot Schematics ------------------ None Fabricated ------------ Nothing Alien Tech Used ----------------- None Achievements -------------- None Challenges ------------ None Game ------ Seed ThiefNavigationRouter Manual? 0 Play Time 00:07:12 Cumulative 356.0 hours Start 2022.12.16 @ 11:15:37 End 2022.12.16 @ 11:21:47 Sessions 1 Manual Loads 0 Difficulty Rogue Special Mode None Game No. 628 Rogue 473 Adventurer 148 Explorer 7 Win Type - Total 12 Types 10/0/1/1/0/0/0/0/0 Lore% 75 Gallery% 88 Achievement% 68 Wizard Run 0 Options --------- ASCII 0 Keyboard 0 Movement Numpad Keybinds 0 Fullscreen 2 Font 18/SmallcapsGlow Map View 76x50 Tactical HUD 1 Map Filters NONE Filters NONE Steam 1 RUN: 248255d0-4c3f-40ab-9ae2-bd439e5ecaab